bitfinex-derivatives/quotes_SOLF0:USTF0_20241016
["timestamp","ask_amount","ask_price","bid_price","bid_amount"]
[1729101853656,3.2229,155.16,155.13,8.92]
[1729101854961,8.92,155.18,155.13,8.92]
[1729101854962,3.2233,155.15,155.13,8.92]
[1729101855259,8.92,155.18,155.13,8.92]
[1729101855456,8.92,155.17,155.14,3.28747657]
[1729101855659,3.2235,155.13,155.12,8.92]
[1729101856450,4.78,155.18,155.12,8.92]
[1729101856654,4.78,155.18,155.14,8.92]
[1729101856852,4.78,155.18,155.15,3.21849726]
[1729101858364,3.223,155.16,155.15,3.21849726]
[1729101860466,4.78,155.18,155.13,8.92]
[1729101860661,3.2232,155.15,155.13,8.92]
[1729101861462,4.78,155.18,155.1,1.3883]
[1729101861669,13.7,155.18,155.12,8.92]
[1729101862373,3.2233,155.15,155.12,12.1436]
[1729101863064,3.2233,155.15,155.13,8.92]
[1729101863270,3.2233,155.15,155.14,3.16100335]
[1729101866567,3.2233,155.14,155.12,8.92]
[1729101867361,3.2233,155.14,155.12,12.1437]
[1729101867578,3.2231,155.15,155.13,8.92]
[1729101867768,3.2231,155.15,155.14,3.15101766]
[1729101870575,3.2234,155.14,155.12,12.1437]
[1729101871570,3.2231,155.15,155.13,12.1434]
[1729101871781,4.78,155.19,155.13,8.92]
[1729101871968,4.78,155.19,155.16,8.92]
[1729101872167,4.78,155.19,155.16,12.14600444]
[1729101872467,13.7,155.22,155.17,8.92]
[1729101872779,4.78,155.22,155.18,8.92]
[1729101872971,3.222,155.21,155.18,12.1424]
[1729101876579,13.7,155.24,155.18,8.92]
[1729101876784,15.0165,155.25,155.2,8.92]
[1729101877079,3.2214,155.24,155.21,3.2219]
[1729101877482,3.2214,155.24,155.21,12.1419]
[1729101877775,3.2212,155.25,155.23,8.92]
[1729101877974,3.2212,155.25,155.24,8.92]
[1729101878372,3.2212,155.25,155.23,8.92]
[1729101879370,3.2209,155.26,155.23,12.1413]
[1729101883084,3.2213,155.24,155.23,8.92]
[1729101883284,8.92,155.27,155.23,8.92]
[1729101883686,3.221,155.26,155.23,12.1414]
[1729101884380,8.92,155.27,155.2,1.4121]
[1729101884581,8.92,155.26,155.2,8.92]
[1729101884989,3.2218,155.22,155.2,8.92]
[1729101885688,3.2218,155.22,155.19,12.1422]
[1729101886586,3.2218,155.22,155.19,3.2222]
[1729101886787,3.2218,155.22,155.19,12.1422]
[1729101888889,3.2221,155.2,155.18,1.4581]
[1729101889090,3.2221,155.2,155.18,10.3781]
[1729101889591,3.2223,155.19,155.18,10.3781]
[1729101889791,4.78,155.25,155.17,3.25050493]
[1729101890094,3.2219,155.21,155.2,8.92]
[1729101890886,3.2219,155.21,155.2,12.20093956]
[1729101893893,3.2218,155.22,155.2,12.20093956]
[1729101902605,3.2219,155.21,155.2,3.28093956]
[1729101902893,3.2219,155.21,155.18,12.1424]
[1729101903298,3.2219,155.21,155.18,15.44320823]
[1729101905005,3.2216,155.23,155.18,15.44320823]
[1729101905200,8.92,155.24,155.18,15.44320823]
[1729101905711,8.92,155.19,155.15,4.5382]
[1729101905894,8.92,155.19,155.11,8.92]
[1729101905895,8.92,155.16,155.11,8.92]
[1729101906096,3.2233,155.15,155.12,8.92]
[1729101906293,3.2233,155.15,155.12,12.1436]
[1729101906697,3.2233,155.15,155.12,8.92]
[1729101906903,3.2233,155.15,155.13,3.2235]
[1729101907306,3.223,155.16,155.13,3.2235]
[1729101910198,3.223,155.16,155.13,8.92]
[1729101910398,3.223,155.16,155.14,3.2232]
[1729101913901,13.7,155.19,155.11,3.27598965]
[1729101914103,1.3986,155.23,155.18,8.92]
[1729101914302,4.78,155.28,155.22,8.92]
[1729101914503,4.78,155.28,155.23,3.3003699]
[1729101914707,1.3326,155.29,155.22,8.92]
[1729101914910,13.7,155.28,155.22,8.92]
[1729101915111,3.2204,155.28,155.26,8.92]
[1729101915309,6.2408,155.3,155.26,8.92]
[1729101915611,4.78,155.3,155.26,8.92]
[1729101915911,4.78,155.3,155.26,12.15908643]
[1729101916613,4.78,155.3,155.26,3.23908643]
[1729101916912,3.2204,155.29,155.25,12.141]
[1729101917113,3.2204,155.29,155.25,15.37944222]
[1729101918517,3.2204,155.28,155.25,15.37944222]
[1729101919012,4.78,155.3,155.25,15.37944222]
[1729101919013,3.2203,155.29,155.25,15.37944222]
[1729101919409,8.0001,155.3,155.27,3.2206]
[1729101919608,8.0001,155.3,155.26,8.92]
[1729101919609,4.78,155.3,155.26,8.92]
[1729101919812,4.78,155.3,155.26,12.1344914]
[1729101921615,8.0001,155.3,155.26,15.3551914]
[1729101922320,8.0001,155.3,155.27,3.2205]
[1729101923408,3.2203,155.29,155.26,15.3552914]
[1729101923714,3.2203,155.29,155.26,6.4352914]
[1729101926021,4.78,155.3,155.26,3.2144914]
[1729101926322,8.92,155.28,155.22,8.92]
[1729101926616,3.2211,155.25,155.22,15.3795234]
[1729101926918,8.92,155.25,155.22,3.2380234]
[1729101927115,3.2215,155.23,155.21,3.2218]
[1729101927419,8.92,155.25,155.2,18.31184216]
[1729101927825,8.92,155.26,155.22,3.2215]
[1729101928725,8.92,155.26,155.21,8.92]
[1729101929015,3.2216,155.23,155.21,8.92]
[1729101929520,3.2216,155.23,155.21,12.1419]
[1729101929718,3.2216,155.23,155.21,8.92]
[1729101929915,3.2216,155.23,155.2,18.31184216]
[1729101930117,3.2216,155.23,155.2,21.53374216]
[1729101931820,3.2216,155.23,155.21,3.2219]
[1729101934123,8.92,155.25,155.2,18.31184216]
[1729101934421,8.92,155.24,155.2,3.22514216]
[1729101934626,8.92,155.24,155.18,8.92]
[1729101934818,3.2222,155.2,155.18,8.92]
[1729101935425,3.2222,155.2,155.18,12.1424]
[1729101935923,3.2222,155.2,155.19,3.24109464]
[1729101936327,3.2222,155.2,155.18,12.1424]
[1729101937923,3.222,155.21,155.18,12.1424]
[1729101946531,3.222,155.21,155.18,3.2224]
[1729101948140,8.92,155.23,155.18,3.2224]
[1729101948328,3.2222,155.2,155.18,3.2224]
[1729101948528,8.92,155.23,155.18,3.2224]
[1729101949334,3.2218,155.22,155.18,3.2224]
[1729101949642,8.92,155.23,155.18,3.2224]
[1729101949934,3.2221,155.2,155.18,3.2224]
[1729101951228,8.92,155.23,155.16,1.4476]
[1729101951429,8.92,155.2,155.14,8.92]
[1729101951626,13.7,155.2,155.14,8.92]
[1729101952331,13.7,155.2,155.14,12.1432]
[1729101953533,3.2228,155.17,155.14,12.1432]
[1729101954938,13.7,155.2,155.14,12.1432]
[1729101955640,3.2229,155.17,155.14,12.1432]
[1729101956741,13.7,155.2,155.14,12.1432]
[1729101956952,3.223,155.16,155.14,12.1432]
[1729101957439,13.7,155.2,155.14,8.92]
[1729101957738,13.7,155.2,155.12,1.4092]
[1729101957739,8.92,155.17,155.12,1.4092]
[1729101959542,3.2234,155.14,155.12,1.4092]
[1729101961439,3.2234,155.14,155.13,8.92]
[1729101962845,3.2235,155.13,155.12,10.3292]
[1729101963047,13.7,155.15,155.11,3.2771619]
[1729101963342,3.2239,155.12,155.1,12.14579631]
[1729101963942,3.2239,155.12,155.1,3.22579631]
[1729101964139,3.2239,155.12,155.09,13.5484]
[1729101964339,8.92,155.13,155.08,3.2244]
[1729101964547,8.92,155.13,155.08,6.50638107]
[1729101964849,3.2242,155.11,155.08,3.2244]
[1729101965239,3.2242,155.11,155.08,6.37421211]
[1729101966137,3.2242,155.11,155.09,8.92]
[1729101968343,3.2242,155.11,155.08,15.29421211]
[1729101968755,7.7615,155.18,155.08,15.29421211]
[1729101968756,1.3161,155.18,155.11,3.2238]
[1729101969050,4.78,155.17,155.13,8.92]
[1729101969241,3.2233,155.14,155.13,12.16468491]
[1729101969440,8.92,155.15,155.1,8.92]
[1729101969636,8.92,155.15,155.1,12.1637176]
[1729101969841,3.2236,155.13,155.1,15.3877176]
[1729101970037,8.92,155.15,155.1,15.3877176]
[1729101970436,4.78,155.17,155.1,12.1637176]
[1729101970437,3.2239,155.12,155.1,12.1637176]
[1729101970643,8.92,155.13,155.1,3.2437176]
[1729101970846,13.7,155.13,155.07,8.92]
[1729101971041,13.7,155.13,155.06,1.3528]
[1729101971244,8.92,155.09,155.03,8.92]
[1729101971442,8.92,155.06,155.01,1.3334]
[1729101971648,4.78,155.05,155.01,1.3334]
[1729101971848,8.92,155.04,154.99,12.1464]
[1729101972051,8.92,155.04,154.99,6.38286286]
[1729101972248,3.2259,155.02,154.99,15.30286286]
[1729101973246,4.78,155.05,155.0,8.92]
[1729101973247,13.7,155.05,155.0,8.92]
[1729101974354,22.0311,155.12,155.0,12.1461]
[1729101974669,8.92,155.05,155.0,12.1461]
[1729101974854,4.78,155.04,155.0,12.1461]
[1729101975159,4.78,155.04,155.01,3.226]
[1729101975350,4.78,155.04,155.01,8.92]
[1729101975757,4.78,155.04,155.01,12.1459]
[1729101976058,4.78,155.04,155.01,8.92]
[1729101976758,4.78,155.04,155.02,3.2258]
[1729101978157,3.2253,155.05,155.02,3.2258]
[1729101978356,8.0053,155.05,155.02,4.6249]
[1729101979655,8.0053,155.05,155.03,3.2256]
[1729101981558,4.78,155.05,155.03,3.2256]
[1729101982064,3.2251,155.06,155.03,12.1456]
[1729101982259,3.2251,155.06,155.03,3.2256]
[1729101985360,8.0051,155.06,155.03,3.2256]
[1729101985563,4.78,155.06,155.03,3.2256]
[1729101985863,8.005,155.06,155.03,3.2256]
[1729101986558,8.005,155.06,155.02,1.3991]
[1729101986559,3.2254,155.04,155.02,1.3991]
[1729101987563,3.2254,155.04,155.02,4.6248]
[1729101988163,3.2252,155.05,155.03,12.1456]
[1729101988368,2.6911,155.12,155.04,8.92]
[1729101988559,4.78,155.11,155.08,8.92]
[1729101988762,4.78,155.11,155.08,12.09905747]
[1729101988763,3.2242,155.1,155.08,12.09905747]
[1729101988958,3.2242,155.1,155.08,8.92]
[1729101989465,3.2242,155.1,155.09,3.24034206]
[1729101989770,3.2242,155.1,155.08,8.92]
[1729101990067,3.2242,155.1,155.09,3.23768635]
[1729101990267,3.2242,155.1,155.08,8.92]
[1729101990868,3.2242,155.1,155.08,12.15220421]
[1729101991070,3.2244,155.09,155.07,3.2247]
[1729101991259,8.92,155.1,155.06,3.22188489]
[1729101991460,8.92,155.1,155.06,3.2249]
[1729101991666,3.2245,155.09,155.06,3.2249]
[1729101992168,3.2247,155.08,155.06,3.17867274]
[1729101992367,8.92,155.09,155.03,10.2371]
[1729101992563,8.92,155.09,155.03,13.43802378]
[1729101992771,3.2249,155.07,155.04,3.2253]
[1729101992965,3.2249,155.07,155.03,13.43802378]
[1729101993469,8.0043,155.1,155.06,8.92]
[1729101994273,8.0043,155.1,155.07,3.2247]
[1729101994873,4.78,155.1,155.07,3.2247]
[1729101995069,3.2244,155.09,155.07,3.2247]
[1729102000772,3.2249,155.07,155.05,3.2251]
[1729102000976,8.92,155.08,155.03,4.51802378]
[1729102001478,8.92,155.08,155.03,3.20092378]
[1729102001671,8.92,155.08,155.02,10.3191]
[1729102001881,8.92,155.07,155.03,3.20887018]
[1729102002185,8.92,155.04,154.96,8.92]
[1729102002375,8.92,155.0,154.96,8.92]
[1729102002582,8.92,155.0,154.94,11.7649]
[1729102003081,3.2265,154.99,154.96,3.2271]
[1729102004080,12.1463,155.0,154.97,3.2268]
[1729102004881,8.92,155.0,154.97,3.2268]
[1729102005084,3.2265,154.99,154.97,3.2268]
[1729102006188,3.2265,154.99,154.94,11.7649]
[1729102006374,3.2265,154.99,154.96,3.227]
[1729102006575,3.2268,154.98,154.94,11.7649]
[1729102006775,4.78,155.01,154.96,12.1469]
[1729102006979,4.78,155.01,154.97,8.92]
[1729102007474,8.0062,155.01,154.99,3.2264]
[1729102007680,8.0062,155.01,154.97,8.92]
[1729102007879,8.0062,155.01,154.98,3.2266]
[1729102012487,3.2262,155.01,154.98,3.2266]
[1729102014893,13.7,155.03,154.98,3.2266]
[1729102015685,3.2262,155.01,154.98,3.2266]
[1729102018386,3.2262,155.01,154.99,3.2264]
[1729102019701,8.0057,155.03,154.99,8.92]
[1729102019995,13.7,155.04,154.99,8.92]
[1729102020690,3.2257,155.03,155.0,3.2261]
[1729102020889,3.2257,155.03,155.01,3.29732363]
[1729102021889,8.92,155.03,154.97,3.2268]
[1729102022197,8.92,155.01,154.95,8.92]
[1729102022497,3.2265,154.99,154.97,3.2268]
[1729102023193,3.2263,155.0,154.97,3.2268]
[1729102024395,8.0062,155.01,154.98,3.2265]
[1729102024694,9.1974,155.09,155.0,8.92]
[1729102024892,3.2257,155.03,155.01,3.2259]
[1729102025087,3.2257,155.03,155.02,3.27678425]
[1729102025798,8.0055,155.04,155.01,3.226]
[1729102026193,4.78,155.04,155.02,3.15096022]
[1729102026392,3.2256,155.03,155.01,3.226]
[1729102026698,13.7,155.04,155.0,3.2262]
[1729102026996,3.2258,155.03,155.0,3.2262]
[1729102028903,16.9256,155.04,155.01,6.44988535]
[1729102029096,16.9256,155.04,155.01,3.2259]
[1729102029299,13.7,155.04,155.01,3.2259]
[1729102029605,13.7,155.04,155.02,3.24205051]
[1729102030496,3.2257,155.03,155.02,3.24205051]
[1729102030802,3.2257,155.03,155.0,3.2261]
[1729102035701,3.2257,155.03,154.99,8.92]
[1729102035904,3.2257,155.03,155.0,3.2262]
[1729102037303,4.78,155.05,155.0,8.92]
[1729102037509,4.78,155.08,155.04,8.92]
[1729102037808,3.2247,155.08,155.06,3.225]
[1729102038606,3.2247,155.08,155.06,6.38602805]
[1729102039407,3.2247,155.08,155.06,3.16102805]
[1729102040302,4.78,155.09,155.06,3.16102805]
[1729102040510,3.2248,155.07,155.04,12.1452]
[1729102040810,3.2248,155.07,155.04,8.92]
[1729102041006,3.2248,155.07,155.05,3.2252]
[1729102041399,3.2248,155.07,155.02,2.907]
[1729102041400,8.92,155.07,155.02,1.4461]
[1729102041706,8.92,155.05,155.02,1.4461]
[1729102041912,8.92,155.04,154.98,1.4207]
[1729102042112,8.92,155.02,154.95,6.1425]
[1729102042309,8.92,155.02,154.96,8.92]
[1729102042507,3.2261,155.01,154.96,8.92]
[1729102042711,3.2261,155.01,154.98,3.2265]
[1729102043807,8.92,155.02,154.96,8.92]
[1729102044007,8.92,155.01,154.97,3.2267]
[1729102044407,3.2263,155.0,154.97,3.2267]
[1729102045009,3.2275,154.94,154.93,3.17679961]
[1729102045308,8.92,154.96,154.9,8.92]
[1729102045507,8.92,154.96,154.9,12.07051825]
[1729102045910,4.78,154.97,154.9,3.15051825]
[1729102046108,4.78,154.97,154.89,1.3547]
[1729102046310,4.78,154.97,154.91,3.2281]
[1729102046709,3.2274,154.95,154.91,3.2281]
[1729102049517,3.2276,154.94,154.91,3.2281]
[1729102055111,3.2276,154.94,154.89,4.52812525]
[1729102055112,4.78,154.97,154.89,4.52812525]
[1729102055315,3.2279,154.93,154.9,3.2282]
[1729102056607,13.95,154.96,154.89,4.52812525]
[1729102056815,3.2282,154.91,154.89,7.75662525]
[1729102057116,3.2282,154.91,154.89,6.40192525]
[1729102057520,15.348,154.96,154.89,3.17342525]
[1729102057710,3.2282,154.91,154.86,16.7739]
[1729102058414,3.2282,154.91,154.86,20.05322861]
[1729102058614,3.228,154.92,154.89,3.2284]
[1729102059226,3.2275,154.94,154.88,13.95]
[1729102059432,8.0075,154.94,154.88,13.95]
[1729102059729,8.0075,154.94,154.91,3.228]
[1729102060421,11.30334189,154.94,154.91,3.228]
[1729102061821,3.2277,154.93,154.91,3.228]
[1729102062023,8.07584189,154.94,154.86,20.05322861]
[1729102062224,22.02584189,154.94,154.86,18.64952861]
[1729102062423,23.40444189,154.94,154.86,4.69952861]
[1729102062623,3.2282,154.91,154.88,3.2286]
[1729102063226,3.2284,154.9,154.88,3.2286]
[1729102063727,23.40444189,154.94,154.88,3.2286]
[1729102064122,3.2282,154.91,154.88,3.2286]
[1729102067416,3.2282,154.91,154.86,13.61952861]
[1729102068024,3.2282,154.91,154.87,3.2288]
[1729102068221,3.2282,154.91,154.86,13.61952861]
[1729102068627,3.2282,154.91,154.88,3.2286]
[1729102070332,8.92,154.89,154.86,3.27932861]
[1729102070632,8.92,154.87,154.82,3.23140047]
[1729102070833,8.92,154.84,154.79,8.92]
[1729102071438,3.23,154.82,154.79,3.2305]
[1729102074632,3.2303,154.81,154.77,3.2309]
[1729102075333,4.82,154.82,154.77,3.2309]
[1729102075537,3.2304,154.8,154.77,3.2309]
[1729102077735,3.2303,154.81,154.78,3.2308]
[1729102078438,3.2304,154.8,154.77,3.2309]
[1729102080046,3.2303,154.81,154.79,3.2306]
[1729102081052,8.0501,154.82,154.79,3.2306]
[1729102081450,13.96,154.86,154.8,3.2303]
[1729102081656,3.2299,154.83,154.8,3.2303]
[1729102081946,4.82,154.85,154.76,13.96]
[1729102082154,13.96,154.84,154.76,13.96]
[1729102082557,13.96,154.84,154.79,3.2305]
[1729102082763,3.23,154.82,154.79,3.2305]
[1729102083356,3.2305,154.8,154.77,3.231]
[1729102084058,13.96,154.8,154.73,1.4182]
[1729102084452,3.2307,154.79,154.73,1.4182]
[1729102084652,3.2307,154.79,154.76,3.2311]
[1729102085548,3.2307,154.79,154.73,4.58893544]
[1729102085759,13.96,154.8,154.73,4.58893544]
[1729102086160,17.1905,154.8,154.77,3.2309]
[1729102087857,3.2305,154.8,154.77,3.2309]
[1729102089346,4.82,154.81,154.77,3.2309]
[1729102089347,3.2307,154.79,154.77,3.2309]
[1729102092070,3.2307,154.79,154.73,4.58893544]
[1729102092361,3.2307,154.79,154.76,3.2312]
[1729102093863,8.94,154.79,154.76,3.2312]
[1729102094761,12.1707,154.79,154.76,3.2312]
[1729102095160,8.94,154.79,154.76,3.2312]
[1729102095364,3.2308,154.78,154.76,3.2312]
[1729102097058,12.1707,154.79,154.76,3.2312]
[1729102101467,8.94,154.79,154.74,3.2315]
[1729102101669,12.1711,154.77,154.73,3.17073544]
[1729102101870,12.1711,154.77,154.71,8.94]
[1729102102466,12.1711,154.77,154.71,12.24878855]
[1729102102666,12.1711,154.77,154.74,3.2316]
[1729102104970,12.1711,154.77,154.72,3.2319]
[1729102105173,12.1711,154.77,154.71,12.24878855]
[1729102105562,8.94,154.77,154.75,3.2313]
[1729102106474,12.1711,154.77,154.75,3.2313]
[1729102112073,3.2311,154.77,154.75,3.2313]
[1729102112277,8.94,154.76,154.75,3.2313]
[1729102114386,8.94,154.76,154.74,3.2316]
[1729102115584,8.94,154.76,154.71,3.30878855]
[1729102115785,8.94,154.76,154.75,3.2315]
[1729102115980,3.231,154.78,154.73,8.94]
[1729102116282,8.94,154.77,154.72,8.94]
[1729102116480,8.94,154.77,154.76,3.2311]
[1729102120691,3.2301,154.82,154.79,3.2305]
[1729102120886,8.94,154.8,154.79,3.2305]
[1729102121076,8.94,154.8,154.79,6.52485825]
[1729102121386,8.94,154.8,154.79,3.2305]
[1729102121582,4.82,154.81,154.8,3.2304]
[1729102121784,13.76,154.81,154.8,3.2304]
[1729102122384,13.76,154.81,154.8,6.38195407]
[1729102122687,8.94,154.81,154.8,6.38195407]
[1729102123683,12.1702,154.81,154.8,3.15155407]
[1729102123880,8.94,154.81,154.78,3.15058476]
[1729102124078,12.1707,154.79,154.75,3.2313]
[1729102124287,8.94,154.77,154.74,1.418]
[1729102124685,8.94,154.77,154.73,2.6938]
[1729102125090,8.94,154.75,154.73,1.3549]
[1729102125491,8.94,154.75,154.7,3.18556849]
[1729102125691,8.94,154.75,154.69,15.1382]
[1729102125885,8.94,154.75,154.69,18.2966316]
[1729102126085,8.94,154.75,154.74,3.2317]
[1729102132190,3.2312,154.77,154.74,3.2317]
[1729102132396,8.94,154.76,154.74,3.2317]
[1729102136298,8.94,154.77,154.75,3.2315]
[1729102136496,4.78,154.78,154.73,8.94]
[1729102136886,4.78,154.78,154.76,3.2312]
[1729102138393,4.78,154.82,154.76,8.94]
[1729102138693,4.78,154.84,154.74,4.78]
[1729102138893,8.94,154.85,154.79,8.94]
[1729102139089,13.72,154.86,154.81,8.94]
[1729102140201,13.72,154.86,154.84,3.2294]
[1729102140501,13.72,154.86,154.81,12.18749757]
[1729102140896,13.72,154.86,154.84,3.2294]
[1729102141701,8.94,154.86,154.84,3.2294]
[1729102141899,88.9351957,154.87,154.84,3.2294]
[1729102142103,16.949,154.87,154.84,3.2294]
[1729102142304,8.94,154.86,154.84,3.2294]
[1729102144702,1.3625,154.92,154.83,8.94]
[1729102145013,8.94,154.89,154.87,3.2288]
[1729102145303,8.94,154.89,154.87,6.47441153]
[1729102145509,8.94,154.89,154.87,3.2288]
[1729102145811,16.9482,154.91,154.88,3.2287]
[1729102146004,8.94,154.91,154.85,8.94]
[1729102146203,3.29584189,154.94,154.86,8.94]
[1729102146403,8.94,154.93,154.88,8.94]
[1729102146900,8.94,154.93,154.92,3.2279]
[1729102149810,8.94,154.93,154.91,3.22106516]
[1729102150005,8.94,154.93,154.91,3.2281]
[1729102150208,8.94,154.93,154.91,6.46664299]
[1729102150502,8.94,154.93,154.91,3.2281]
[1729102150909,12.1679,154.92,154.91,3.28406533]
[1729102151110,8.94,154.92,154.87,1.4006]
[1729102151311,8.94,154.9,154.87,1.4006]
[1729102151609,8.94,154.9,154.88,3.2286]
[1729102151913,8.94,154.9,154.87,1.4006]
[1729102152103,8.94,154.9,154.88,3.2287]
[1729102153606,8.94,154.91,154.88,3.2287]
[1729102155303,8.94,154.91,154.87,1.4006]
[1729102155613,8.94,154.91,154.89,3.2285]
[1729102156304,8.94,154.92,154.9,3.2283]
[1729102156505,3.29584189,154.94,154.91,8.94]
[1729102156712,6.26765718,154.95,154.92,8.94]
[1729102156713,2.93609907,154.95,154.92,8.94]
[1729102156906,2.93609907,154.95,154.94,3.2275]
[1729102157107,2.93609907,154.95,154.94,12.1675]
[1729102159017,2.93609907,154.95,154.94,3.2275]
[1729102165822,11.87609907,154.95,154.91,6.14936155]
[1729102166123,2.93609907,154.95,154.91,4.68906155]
[1729102166514,2.93609907,154.95,154.93,3.2275]
[1729102167018,2.93609907,154.95,154.92,8.94]
[1729102167630,2.93609907,154.95,154.93,3.2275]
[1729102169122,2.93609907,154.95,154.94,3.2275]
[1729102170318,6.16339907,154.95,154.92,3.2279]
[1729102170518,6.16339907,154.95,154.91,4.68906155]
[1729102171026,6.16339907,154.95,154.92,3.2277]
[1729102171219,2.93609907,154.95,154.91,4.68906155]
[1729102171522,2.93609907,154.95,154.93,3.2275]
[1729102172427,2.93609907,154.95,154.94,3.2275]
[1729102176631,2.93609907,154.95,154.91,13.62906155]
[1729102177529,2.93609907,154.95,154.94,3.2275]
[1729102187925,2.93609907,154.95,154.91,4.68906155]
[1729102188139,11.87609907,154.95,154.91,3.30946155]
[1729102188336,11.87609907,154.95,154.89,8.94]
[1729102188932,11.87609907,154.95,154.89,12.13155444]
[1729102189234,15.10349907,154.95,154.92,3.2279]
[1729102190738,11.87609907,154.95,154.89,3.19155444]
[1729102190931,11.87609907,154.95,154.88,7.5878]
[1729102190932,11.87609907,154.95,154.88,16.5278]
[1729102191440,3.2278,154.93,154.9,3.2282]
[1729102192140,3.2278,154.93,154.88,19.69966743]
[1729102192340,3.2278,154.93,154.91,3.2281]
[1729102193343,3.2276,154.94,154.91,3.2281]
[1729102197035,3.2276,154.94,154.92,3.2279]
[1729102197933,11.87609907,154.95,154.88,19.69966743]
[1729102198133,8.94,154.93,154.9,3.2283]
[1729102198539,8.94,154.93,154.88,4.59916743]
[1729102198540,3.228,154.92,154.88,4.59916743]
[1729102199239,12.1678,154.93,154.9,3.2282]
[1729102200544,1.84113974,154.94,154.92,3.2277]
[1729102200745,1.84113974,154.94,154.93,8.94]
[1729102201049,1.84113974,154.94,154.93,12.1677]
[1729102202947,1.84113974,154.94,154.9,4.78]
[1729102202948,1.84113974,154.94,154.92,3.2277]
[1729102203151,1.84113974,154.94,154.91,8.94]
[1729102204544,1.84113974,154.94,154.93,3.2277]
[1729102205055,1.84113974,154.94,154.91,8.94]
[1729102205350,1.84113974,154.94,154.92,3.2278]
[1729102205746,1.84113974,154.94,154.91,8.94]
[1729102205949,1.84113974,154.94,154.93,3.2277]
[1729102208246,1.84113974,154.94,154.91,8.94]
[1729102208551,1.84113974,154.94,154.92,3.2278]
[1729102208942,1.84113974,154.94,154.9,13.72]
[1729102209139,8.94,154.92,154.88,4.59916743]
[1729102209344,8.94,154.91,154.88,3.17186743]
[1729102209547,8.94,154.91,154.88,3.2286]
[1729102209548,12.1683,154.91,154.88,3.2286]
[1729102209751,12.1683,154.91,154.88,6.5362308]
[1729102209946,12.1683,154.91,154.88,3.2286]
[1729102210348,8.94,154.91,154.86,97.19304615]
[1729102210541,8.94,154.92,154.86,106.13304615]
[1729102210747,8.94,154.92,154.88,8.94]
[1729102211061,8.94,154.92,154.89,3.2284]
[1729102211062,12.168,154.92,154.89,3.2284]
[1729102213366,10.78113974,154.94,154.88,12.22858803]
[1729102213551,5.06873974,154.94,154.91,3.228]
[1729102214249,5.06873974,154.94,154.91,6.48106897]
[1729102214956,1.84113974,154.94,154.91,6.48106897]
[1729102215157,3.2277,154.93,154.91,6.48106897]
[1729102215759,12.1679,154.92,154.89,1.3472]
[1729102215960,12.1679,154.92,154.87,8.94]
[1729102216154,12.1679,154.92,154.9,3.2283]
[1729102216752,12.1679,154.92,154.87,12.14745988]
[1729102216954,12.1679,154.92,154.89,3.2284]
[1729102217555,12.1679,154.92,154.87,12.14745988]
[1729102217556,8.94,154.91,154.87,3.20745988]
[1729102217754,8.94,154.91,154.86,4.78]
[1729102217957,8.94,154.91,154.84,1.4159]
[1729102218253,8.94,154.87,154.84,1.4159]